[Event "*** MasterClass Titled Tuesday Blitz"]
[Site "Chess.com"]
[Date "2017.09.05"]
[Round "3"]
[White "jcibarra"]
[Black "swayamsm"]
[Result "1-0"]
[WhiteElo "2672"]
[BlackElo "2507"]
[TimeControl "180+2"]
[EndTime "13:42:27 PDT"]
[Termination "jcibarra won by resignation"]

1. e4 {[%clk 0:03:01.9]} 1... e6 {[%clk 0:02:55.5]} 2. d4 {[%clk 0:03:02.5]}
2... d5 {[%clk 0:02:52.7]} 3. Nd2 {[%clk 0:03:03.9]} 3... Be7 {[%clk 0:02:52.6]}
4. e5 {[%clk 0:03:03.3]} 4... c5 {[%clk 0:02:53.3]} 5. c3 {[%clk 0:03:04.5]}
5... Nc6 {[%clk 0:02:52.5]} 6. Bd3 {[%clk 0:03:05.5]} 6... Bd7 {[%clk
0:02:31.2]} 7. Qg4 {[%clk 0:03:00.2]} 7... g6 {[%clk 0:02:27.1]} 8. Ndf3 {[%clk
0:02:56.3]} 8... h5 {[%clk 0:02:10.6]} 9. Qf4 {[%clk 0:02:55.1]} 9... cxd4
{[%clk 0:02:02.3]} 10. Nxd4 {[%clk 0:02:53.9]} 10... g5 {[%clk 0:01:52.3]} 11.
Qe3 {[%clk 0:02:47.9]} 11... Nh6 {[%clk 0:01:49]} 12. Ngf3 {[%clk 0:02:44.1]}
12... Ng4 {[%clk 0:01:46]} 13. Qe2 {[%clk 0:02:41.4]} 13... Nh6 {[%clk
0:01:23.4]} 14. h3 {[%clk 0:02:30.7]} 14... Nf5 {[%clk 0:01:06.5]} 15. Nxf5
{[%clk 0:02:11.8]} 15... exf5 {[%clk 0:01:08.4]} 16. h4 {[%clk 0:02:06.1]} 16...
g4 {[%clk 0:01:06.9]} 17. Ng5 {[%clk 0:02:03.4]} 17... Be6 {[%clk 0:01:05.8]}
18. Bf4 {[%clk 0:01:50.8]} 18... d4 {[%clk 0:00:58.6]} 19. Nxe6 {[%clk 0:01:28]}
19... fxe6 {[%clk 0:00:58.4]} 20. Bc4 {[%clk 0:01:29.6]} 20... dxc3 {[%clk
0:00:52.7]} 21. bxc3 {[%clk 0:01:26.7]} 21... Kf7 {[%clk 0:00:49.9]} 22. Rd1
{[%clk 0:01:17.9]} 22... Qc8 {[%clk 0:00:50.2]} 23. Qc2 {[%clk 0:01:15.9]} 23...
Kg6 {[%clk 0:00:42.8]} 24. O-O {[%clk 0:01:15.2]} 24... Rd8 {[%clk 0:00:42.6]}
25. f3 {[%clk 0:00:52.8]} 25... Nxe5 {[%clk 0:00:35.9]} 26. Bb3 {[%clk
0:00:51.1]} 26... Qc5+ {[%clk 0:00:28.3]} 27. Kh1 {[%clk 0:00:49.7]} 27... Rd6
{[%clk 0:00:15.6]} 28. Rde1 {[%clk 0:00:34.9]} 28... Bf6 {[%clk 0:00:16.2]} 29.
Bxe5 {[%clk 0:00:26.4]} 29... Bxe5 {[%clk 0:00:18.1]} 30. fxg4 {[%clk
0:00:28.3]} 30... hxg4 {[%clk 0:00:18.6]} 31. Bxe6 {[%clk 0:00:29.2]} 31... Rf8
{[%clk 0:00:14]} 32. Bxf5+ {[%clk 0:00:21.6]} 32... Kg7 {[%clk 0:00:15.1]} 33.
Qe4 {[%clk 0:00:20.9]} 33... Bf6 {[%clk 0:00:09.2]} 34. Qxg4+ {[%clk 0:00:21.6]}
34... Kh8 {[%clk 0:00:07.5]} 35. Qh5+ {[%clk 0:00:22.7]} 1-0

[Event "*** MasterClass Titled Tuesday Blitz"]
[Site "Chess.com"]
[Date "2017.09.05"]
[Round "3"]
[White "abubakrtagelsir"]
[Black "Sebastian"]
[Result "0-1"]
[WhiteElo "2214"]
[BlackElo "2816"]
[TimeControl "180+2"]
[EndTime "13:42:35 PDT"]
[Termination "Sebastian won by resignation"]

1. e4 {[%clk 0:03:01.9]} 1... e5 {[%clk 0:03:01.1]} 2. Nf3 {[%clk 0:03:02.1]}
2... Nc6 {[%clk 0:03:02.7]} 3. d4 {[%clk 0:03:02.2]} 3... exd4 {[%clk
0:03:03.4]} 4. Bc4 {[%clk 0:03:02.2]} 4... Nf6 {[%clk 0:03:03.4]} 5. e5 {[%clk
0:03:01.2]} 5... d5 {[%clk 0:03:04.6]} 6. Bb5 {[%clk 0:02:53.1]} 6... Ne4 {[%clk
0:03:05.3]} 7. Nxd4 {[%clk 0:02:45.4]} 7... Bd7 {[%clk 0:03:04.7]} 8. Bxc6
{[%clk 0:02:43.7]} 8... bxc6 {[%clk 0:03:05.1]} 9. O-O {[%clk 0:02:42.8]} 9...
Bc5 {[%clk 0:02:54.6]} 10. f3 {[%clk 0:02:43.3]} 10... Ng5 {[%clk 0:02:54.6]}
11. f4 {[%clk 0:02:43.3]} 11... Ne4 {[%clk 0:02:50.7]} 12. Be3 {[%clk
0:02:41.2]} 12... Bb6 {[%clk 0:02:42.1]} 13. Nc3 {[%clk 0:02:41.2]} 13... c5
{[%clk 0:02:18.9]} 14. Nb3 {[%clk 0:02:34]} 14... d4 {[%clk 0:01:38.6]} 15. Nxe4
{[%clk 0:02:26.9]} 15... dxe3 {[%clk 0:01:38.6]} 16. c4 {[%clk 0:02:25.3]} 16...
Bc6 {[%clk 0:01:23.1]} 17. Qc2 {[%clk 0:02:09.3]} 17... Qe7 {[%clk 0:01:19.9]}
18. Rae1 {[%clk 0:01:59.3]} 18... f6 {[%clk 0:01:20.5]} 19. Rxe3 {[%clk
0:01:53.8]} 19... fxe5 {[%clk 0:01:19.8]} 20. fxe5 {[%clk 0:01:52.4]} 20...
O-O-O {[%clk 0:01:19.6]} 21. Nc3 {[%clk 0:01:45.3]} 21... Rhf8 {[%clk
0:01:14.2]} 22. Rfe1 {[%clk 0:01:38.5]} 22... Qe6 {[%clk 0:01:11.4]} 23. Ne2
{[%clk 0:01:24.3]} 23... g5 {[%clk 0:01:06.3]} 24. Qc3 {[%clk 0:01:07.2]} 24...
h5 {[%clk 0:00:58.2]} 25. Na5 {[%clk 0:00:55.6]} 25... Ba8 {[%clk 0:00:58.3]}
26. a4 {[%clk 0:00:47.9]} 26... Rd4 {[%clk 0:00:55.3]} 27. Nc1 {[%clk
0:00:18.3]} 27... Qf5 {[%clk 0:00:46.2]} 28. R3e2 {[%clk 0:00:17.4]} 28... Rf4
{[%clk 0:00:45.5]} 29. h3 {[%clk 0:00:17.6]} 29... g4 {[%clk 0:00:37.8]} 30.
Nab3 {[%clk 0:00:10.1]} 30... h4 {[%clk 0:00:34.1]} 31. hxg4 {[%clk 0:00:10.2]}
31... Rxg4 {[%clk 0:00:26.6]} 32. a5 {[%clk 0:00:08.6]} 32... Rfg8 {[%clk
0:00:25.9]} 33. Qh3 {[%clk 0:00:04.8]} 33... Bxg2 {[%clk 0:00:18.1]} 34. Rxg2
{[%clk 0:00:04.8]} 34... Rxg2+ {[%clk 0:00:19.7]} 35. Qxg2 {[%clk 0:00:05.4]}
35... Rxg2+ {[%clk 0:00:21.2]} 36. Kxg2 {[%clk 0:00:06.3]} 36... Qg4+ {[%clk
0:00:22.9]} 37. Kh2 {[%clk 0:00:06.5]} 37... Qg3+ {[%clk 0:00:24]} 38. Kh1
{[%clk 0:00:07]} 38... Qxe1+ {[%clk 0:00:25.7]} 0-1

[Event "*** MasterClass Titled Tuesday Blitz"]
[Site "Chess.com"]
[Date "2017.09.05"]
[Round "3"]
[White "josiwales"]
[Black "GMHess"]
[Result "1-0"]
[WhiteElo "2316"]
[BlackElo "2521"]
[TimeControl "180+2"]
[EndTime "13:42:38 PDT"]
[Termination "josiwales won by checkmate"]

1. e4 {[%clk 0:03:02]} 1... d6 {[%clk 0:02:52.5]} 2. d4 {[%clk 0:03:02.6]} 2...
Nf6 {[%clk 0:02:54.4]} 3. Nc3 {[%clk 0:03:03.3]} 3... c6 {[%clk 0:02:55]} 4. f4
{[%clk 0:03:04.1]} 4... Qa5 {[%clk 0:02:55.9]} 5. Bd3 {[%clk 0:03:04]} 5... d5
{[%clk 0:02:56.6]} 6. e5 {[%clk 0:03:01.1]} 6... Ne4 {[%clk 0:02:56.9]} 7. Bxe4
{[%clk 0:03:00.2]} 7... dxe4 {[%clk 0:02:58.8]} 8. Ne2 {[%clk 0:02:59.2]} 8...
f5 {[%clk 0:02:53.1]} 9. O-O {[%clk 0:02:53.6]} 9... Be6 {[%clk 0:02:42.7]} 10.
b4 {[%clk 0:02:50.1]} 10... Qa6 {[%clk 0:02:34.5]} 11. a4 {[%clk 0:02:47.8]}
11... Bc4 {[%clk 0:02:33.5]} 12. Be3 {[%clk 0:02:39.9]} 12... e6 {[%clk
0:02:26.4]} 13. b5 {[%clk 0:02:11.4]} 13... Qa5 {[%clk 0:02:12.3]} 14. Kh1
{[%clk 0:01:31.9]} 14... Bb4 {[%clk 0:02:07.1]} 15. Na2 {[%clk 0:01:20.5]} 15...
cxb5 {[%clk 0:01:24.7]} 16. c3 {[%clk 0:00:57]} 16... Be7 {[%clk 0:01:18.1]} 17.
Nac1 {[%clk 0:00:37.4]} 17... O-O {[%clk 0:01:10]} 18. Nb3 {[%clk 0:00:30.8]}
18... Qc7 {[%clk 0:01:02.7]} 19. axb5 {[%clk 0:00:27.9]} 19... Bxb5 {[%clk
0:00:56.9]} 20. d5 {[%clk 0:00:11]} 20... Qc4 {[%clk 0:00:36.1]} 21. d6 {[%clk
0:00:10]} 21... Qxe2 {[%clk 0:00:32.3]} 22. dxe7 {[%clk 0:00:10.2]} 22... Re8
{[%clk 0:00:32.7]} 23. Qd6 {[%clk 0:00:08.8]} 23... Bc4 {[%clk 0:00:22.7]} 24.
Na5 {[%clk 0:00:08.7]} 24... Nc6 {[%clk 0:00:16]} 25. Nxc6 {[%clk 0:00:09.4]}
25... bxc6 {[%clk 0:00:16.1]} 26. Rfe1 {[%clk 0:00:11.4]} 26... Qd3 {[%clk
0:00:16.3]} 27. Qxc6 {[%clk 0:00:12.2]} 27... Rac8 {[%clk 0:00:13.5]} 28. Qd6
{[%clk 0:00:10.5]} 28... Qxc3 {[%clk 0:00:11.2]} 29. Bd4 {[%clk 0:00:09.7]}
29... Qc2 {[%clk 0:00:07.2]} 30. Rac1 {[%clk 0:00:10.7]} 30... Qd3 {[%clk
0:00:08.1]} 31. Red1 {[%clk 0:00:09]} 31... Qe2 {[%clk 0:00:09.3]} 32. Bg1
{[%clk 0:00:09.4]} 32... e3 {[%clk 0:00:09.3]} 33. Qd7 {[%clk 0:00:08.3]} 33...
Bd5 {[%clk 0:00:08.9]} 34. Rxd5 {[%clk 0:00:06.9]} 34... Kf7 {[%clk 0:00:05.9]}
35. Rxc8 {[%clk 0:00:06.5]} 35... Rxe7 {[%clk 0:00:07.3]} 36. Qd8 {[%clk
0:00:03.4]} 36... exd5 {[%clk 0:00:07.4]} 37. Qf8+ {[%clk 0:00:04.5]} 37... Kg6
{[%clk 0:00:07.3]} 38. Rc6+ {[%clk 0:00:06.5]} 38... Kh5 {[%clk 0:00:07.7]} 39.
Qxf5+ {[%clk 0:00:08]} 39... Kh4 {[%clk 0:00:08.2]} 40. g3# {[%clk 0:00:09.5]}
1-0

[Event "*** MasterClass Titled Tuesday Blitz"]
[Site "Chess.com"]
[Date "2017.09.05"]
[Round "3"]
[White "hypert"]
[Black "pastouche06"]
[Result "0-1"]
[WhiteElo "2309"]
[BlackElo "2348"]
[TimeControl "180+2"]
[EndTime "13:42:51 PDT"]
[Termination "pastouche06 won by checkmate"]

1. d4 {[%clk 0:03:01.9]} 1... g6 {[%clk 0:03:01.9]} 2. e4 {[%clk 0:03:01.5]}
2... Bg7 {[%clk 0:03:03.1]} 3. Nc3 {[%clk 0:03:02.7]} 3... e6 {[%clk 0:03:04.6]}
4. Be3 {[%clk 0:03:01.3]} 4... Ne7 {[%clk 0:03:06.1]} 5. h4 {[%clk 0:03:01.1]}
5... h6 {[%clk 0:03:06]} 6. Nf3 {[%clk 0:03:01.2]} 6... d5 {[%clk 0:03:05.8]} 7.
e5 {[%clk 0:03:00.6]} 7... c5 {[%clk 0:03:05.2]} 8. Ne2 {[%clk 0:02:59.2]} 8...
cxd4 {[%clk 0:03:06.1]} 9. Nexd4 {[%clk 0:02:55.6]} 9... Nbc6 {[%clk 0:03:02.6]}
10. Bb5 {[%clk 0:02:51.4]} 10... O-O {[%clk 0:03:00.5]} 11. Nxc6 {[%clk
0:02:38.2]} 11... Nxc6 {[%clk 0:02:56.6]} 12. Bxc6 {[%clk 0:02:38.3]} 12... bxc6
{[%clk 0:02:58.5]} 13. Qd2 {[%clk 0:02:38.9]} 13... Kh7 {[%clk 0:02:57.3]} 14.
O-O-O {[%clk 0:02:37.3]} 14... Qc7 {[%clk 0:02:36.4]} 15. Bc5 {[%clk 0:02:14.1]}
15... Rd8 {[%clk 0:02:32]} 16. Rhe1 {[%clk 0:02:13.8]} 16... Rb8 {[%clk
0:02:24.1]} 17. b3 {[%clk 0:02:10.9]} 17... Rb5 {[%clk 0:02:22.5]} 18. Qc3
{[%clk 0:02:07.2]} 18... a5 {[%clk 0:02:09.9]} 19. a4 {[%clk 0:02:07]} 19... Rb8
{[%clk 0:02:06.7]} 20. g4 {[%clk 0:02:01.8]} 20... Ba6 {[%clk 0:01:57.4]} 21. h5
{[%clk 0:02:00.6]} 21... g5 {[%clk 0:01:54.8]} 22. Qe3 {[%clk 0:02:00]} 22...
Rb7 {[%clk 0:01:14.2]} 23. Nd4 {[%clk 0:02:00.1]} 23... Bf8 {[%clk 0:00:59.6]}
24. Bxf8 {[%clk 0:01:47.3]} 24... Rxf8 {[%clk 0:01:01.5]} 25. f4 {[%clk
0:01:48.1]} 25... gxf4 {[%clk 0:00:45]} 26. Qxf4 {[%clk 0:01:50]} 26... c5
{[%clk 0:00:39.5]} 27. Nxe6 {[%clk 0:01:45.7]} 27... fxe6 {[%clk 0:00:33.2]} 28.
Qxf8 {[%clk 0:01:46.8]} 28... c4 {[%clk 0:00:34.9]} 29. Qd6 {[%clk 0:01:04.3]}
29... Qc8 {[%clk 0:00:21.2]} 30. Qxa6 {[%clk 0:00:41.3]} 30... cxb3 {[%clk
0:00:21.9]} 31. Qd3+ {[%clk 0:00:40.8]} 31... Kg7 {[%clk 0:00:20.5]} 32. Rf1
{[%clk 0:00:35.9]} 32... bxc2 {[%clk 0:00:17.3]} 33. Qg6+ {[%clk 0:00:20.8]}
33... Kh8 {[%clk 0:00:18.6]} 34. Qxh6+ {[%clk 0:00:21.8]} 34... Kg8 {[%clk
0:00:19.9]} 35. Qg6+ {[%clk 0:00:22.7]} 35... Kh8 {[%clk 0:00:21.1]} 36. Qh6+
{[%clk 0:00:19.9]} 36... Kg8 {[%clk 0:00:21.8]} 37. Rf8+ {[%clk 0:00:20.3]}
37... Qxf8 {[%clk 0:00:18.9]} 38. Qxe6+ {[%clk 0:00:15]} 38... Kh8 {[%clk
0:00:17]} 39. Rd2 {[%clk 0:00:13.9]} 39... Qa3+ {[%clk 0:00:12.9]} 40. Kxc2
{[%clk 0:00:14.7]} 40... Qb3+ {[%clk 0:00:10.6]} 41. Kc1 {[%clk 0:00:16.3]}
41... Qb1# {[%clk 0:00:11.7]} 0-1

[Event "*** MasterClass Titled Tuesday Blitz"]
[Site "Chess.com"]
[Date "2017.09.05"]
[Round "3"]
[White "Blitzstream"]
[Black "maciek_92"]
[Result "0-1"]
[WhiteElo "2482"]
[BlackElo "2526"]
[TimeControl "180+2"]
[EndTime "13:42:52 PDT"]
[Termination "maciek_92 won by resignation"]

1. g4 {[%clk 0:03:01.9]} 1... d5 {[%clk 0:02:55.7]} 2. Bg2 {[%clk 0:03:01.8]}
2... c6 {[%clk 0:02:56.3]} 3. g5 {[%clk 0:03:02.8]} 3... e5 {[%clk 0:02:54.4]}
4. d4 {[%clk 0:03:02.2]} 4... Nd7 {[%clk 0:02:37.6]} 5. c4 {[%clk 0:02:51.1]}
5... dxc4 {[%clk 0:02:35.8]} 6. Nc3 {[%clk 0:02:51.8]} 6... Ne7 {[%clk
0:02:29.8]} 7. dxe5 {[%clk 0:02:06.3]} 7... Nxe5 {[%clk 0:02:30.7]} 8. Qxd8+
{[%clk 0:02:08.2]} 8... Kxd8 {[%clk 0:02:32.4]} 9. Bf4 {[%clk 0:02:10.1]} 9...
N7g6 {[%clk 0:02:32.3]} 10. O-O-O+ {[%clk 0:02:12]} 10... Ke8 {[%clk 0:02:24.1]}
11. Bg3 {[%clk 0:02:09.6]} 11... h5 {[%clk 0:02:24.5]} 12. h4 {[%clk 0:01:47.7]}
12... Be6 {[%clk 0:02:16.3]} 13. Be4 {[%clk 0:01:30.7]} 13... Ng4 {[%clk
0:01:35.4]} 14. Nf3 {[%clk 0:01:16.5]} 14... Rd8 {[%clk 0:01:23.8]} 15. Nd4
{[%clk 0:01:11.9]} 15... Bc8 {[%clk 0:01:22.9]} 16. Nf5 {[%clk 0:00:47.3]} 16...
N4e5 {[%clk 0:00:38.6]} 17. Rxd8+ {[%clk 0:00:44.6]} 17... Kxd8 {[%clk
0:00:40.5]} 18. Rd1+ {[%clk 0:00:45.7]} 18... Ke8 {[%clk 0:00:32]} 19. Ne3
{[%clk 0:00:23.3]} 19... Bc5 {[%clk 0:00:30.3]} 20. Nf5 {[%clk 0:00:19.6]} 20...
Bxf5 {[%clk 0:00:15.7]} 21. Bxf5 {[%clk 0:00:20.4]} 21... Ke7 {[%clk 0:00:17.3]}
22. Ne4 {[%clk 0:00:21.6]} 22... Bb6 {[%clk 0:00:18.7]} 23. Nd6 {[%clk
0:00:21.3]} 23... Rd8 {[%clk 0:00:15.6]} 24. Nxb7 {[%clk 0:00:21.4]} 24... Rxd1+
{[%clk 0:00:16.5]} 25. Kxd1 {[%clk 0:00:23.3]} 25... Bd4 {[%clk 0:00:14.7]} 26.
Kc2 {[%clk 0:00:23]} 26... Bb6 {[%clk 0:00:09.7]} 27. Bxg6 {[%clk 0:00:18.9]}
27... Nxg6 {[%clk 0:00:10.2]} 28. Nd6 {[%clk 0:00:20.5]} 28... Nxh4 {[%clk
0:00:09.5]} 29. Nc8+ {[%clk 0:00:20.3]} 29... Ke6 {[%clk 0:00:08.8]} 30. Nxb6
{[%clk 0:00:21.5]} 30... axb6 {[%clk 0:00:10.7]} 31. Bxh4 {[%clk 0:00:22.4]}
31... Kf5 {[%clk 0:00:12.6]} 32. Kc3 {[%clk 0:00:18.9]} 32... Kg4 {[%clk
0:00:13.6]} 33. Bg3 {[%clk 0:00:20.1]} 33... h4 {[%clk 0:00:15]} 34. Bd6 {[%clk
0:00:20.5]} 34... b5 {[%clk 0:00:16.5]} 35. Kb4 {[%clk 0:00:18.7]} 35... Kxg5
{[%clk 0:00:14.8]} 36. Kc5 {[%clk 0:00:20]} 36... f5 {[%clk 0:00:15.8]} 37. e3
{[%clk 0:00:18.5]} 37... h3 {[%clk 0:00:17]} 38. Kxc6 {[%clk 0:00:19.2]} 38...
b4 {[%clk 0:00:18.4]} 39. a4 {[%clk 0:00:04.3]} 39... bxa3 {[%clk 0:00:18.3]}
40. bxa3 {[%clk 0:00:04.7]} 40... c3 {[%clk 0:00:19.8]} 0-1

[Event "*** MasterClass Titled Tuesday Blitz"]
[Site "Chess.com"]
[Date "2017.09.05"]
[Round "3"]
[White "michaelq2d5"]
[Black "Noukii"]
[Result "0-1"]
[WhiteElo "2633"]
[BlackElo "2670"]
[TimeControl "180+2"]
[EndTime "13:43:01 PDT"]
[Termination "Noukii won by resignation"]

1. d4 {[%clk 0:03:02]} 1... d5 {[%clk 0:02:59.9]} 2. c4 {[%clk 0:03:02.5]} 2...
c6 {[%clk 0:03:01.5]} 3. Nc3 {[%clk 0:03:03.1]} 3... Nf6 {[%clk 0:03:03]} 4.
cxd5 {[%clk 0:03:03.9]} 4... cxd5 {[%clk 0:03:04.1]} 5. Bg5 {[%clk 0:03:05.1]}
5... e6 {[%clk 0:02:35.8]} 6. e3 {[%clk 0:03:04.5]} 6... Be7 {[%clk 0:02:35.2]}
7. Bd3 {[%clk 0:03:05.5]} 7... O-O {[%clk 0:02:36.4]} 8. Nf3 {[%clk 0:03:06.2]}
8... Nc6 {[%clk 0:02:38]} 9. O-O {[%clk 0:03:07.3]} 9... Bd7 {[%clk 0:02:37.2]}
10. Rc1 {[%clk 0:03:07.7]} 10... a6 {[%clk 0:02:31]} 11. Ne5 {[%clk 0:02:45.1]}
11... Nxe5 {[%clk 0:01:59.3]} 12. dxe5 {[%clk 0:02:44.9]} 12... Ne8 {[%clk
0:02:00.9]} 13. Bxe7 {[%clk 0:02:30.5]} 13... Qxe7 {[%clk 0:02:01.7]} 14. e4
{[%clk 0:02:31.4]} 14... dxe4 {[%clk 0:01:32.4]} 15. Bxe4 {[%clk 0:02:29.4]}
15... Nc7 {[%clk 0:01:21.7]} 16. Qd6 {[%clk 0:01:54.1]} 16... Qxd6 {[%clk
0:01:22.6]} 17. exd6 {[%clk 0:01:55.3]} 17... Nb5 {[%clk 0:01:23.1]} 18. Bxb7
{[%clk 0:01:50.8]} 18... Ra7 {[%clk 0:01:24.4]} 19. Bf3 {[%clk 0:01:31.8]} 19...
Nxd6 {[%clk 0:01:25.4]} 20. Rfd1 {[%clk 0:01:32.8]} 20... Nb5 {[%clk 0:01:25.4]}
21. Ne4 {[%clk 0:01:32.6]} 21... e5 {[%clk 0:01:15.1]} 22. Nc5 {[%clk
0:01:12.9]} 22... Bc8 {[%clk 0:01:08.4]} 23. Bd5 {[%clk 0:00:58.3]} 23... g6
{[%clk 0:01:00]} 24. Re1 {[%clk 0:00:56.8]} 24... Re7 {[%clk 0:00:55.2]} 25. f4
{[%clk 0:00:56.5]} 25... Rd8 {[%clk 0:00:53.7]} 26. Rcd1 {[%clk 0:00:39.4]}
26... Rde8 {[%clk 0:00:51.2]} 27. Bc6 {[%clk 0:00:39.1]} 27... Rf8 {[%clk
0:00:47.5]} 28. Rxe5 {[%clk 0:00:38.7]} 28... Rc7 {[%clk 0:00:41.2]} 29. Bxb5
{[%clk 0:00:28.8]} 29... axb5 {[%clk 0:00:42.1]} 30. b4 {[%clk 0:00:30]} 30...
Bg4 {[%clk 0:00:39.7]} 31. Rd2 {[%clk 0:00:27.6]} 31... Ra8 {[%clk 0:00:38.8]}
32. h3 {[%clk 0:00:28.3]} 32... Bf5 {[%clk 0:00:40.2]} 33. Nb3 {[%clk
0:00:23.2]} 33... Rc4 {[%clk 0:00:38.8]} 34. Rxb5 {[%clk 0:00:21.2]} 34... Rxf4
{[%clk 0:00:38.8]} 35. Nc5 {[%clk 0:00:17.1]} 35... Ra3 {[%clk 0:00:31.2]} 36.
Rb8+ {[%clk 0:00:17.1]} 36... Kg7 {[%clk 0:00:31.9]} 37. Rb7 {[%clk 0:00:15.4]}
37... h5 {[%clk 0:00:28.2]} 38. Rf2 {[%clk 0:00:13.8]} 38... Rc4 {[%clk
0:00:26.4]} 39. Nb3 {[%clk 0:00:10.2]} 39... h4 {[%clk 0:00:24.8]} 40. b5 {[%clk
0:00:11.2]} 40... Rb4 {[%clk 0:00:26.2]} 41. b6 {[%clk 0:00:12]} 41... Be6
{[%clk 0:00:27.5]} 42. Nc5 {[%clk 0:00:12.3]} 42... Bxa2 {[%clk 0:00:28.1]} 43.
Ra7 {[%clk 0:00:10.7]} 43... Rc3 {[%clk 0:00:27.3]} 44. Rfxa2 {[%clk 0:00:09.9]}
44... Rxc5 {[%clk 0:00:28]} 45. Rf2 {[%clk 0:00:10.9]} 45... Rc1+ {[%clk
0:00:26.5]} 46. Kh2 {[%clk 0:00:09]} 46... Rbb1 {[%clk 0:00:27.4]} 47. Rfxf7+
{[%clk 0:00:07.8]} 47... Kh6 {[%clk 0:00:28.7]} 48. g4 {[%clk 0:00:08.5]} 48...
Rb2+ {[%clk 0:00:28.7]} 0-1

[Event "*** MasterClass Titled Tuesday Blitz"]
[Site "Chess.com"]
[Date "2017.09.05"]
[Round "3"]
[White "IamSchrodingersCat"]
[Black "Cruel_Yaro"]
[Result "0-1"]
[WhiteElo "2428"]
[BlackElo "2636"]
[TimeControl "180+2"]
[EndTime "13:43:06 PDT"]
[Termination "Cruel_Yaro won on time"]

1. e4 {[%clk 0:03:01.9]} 1... c5 {[%clk 0:03:00.2]} 2. Nf3 {[%clk 0:03:02.4]}
2... d6 {[%clk 0:03:01.7]} 3. d4 {[%clk 0:03:03.2]} 3... cxd4 {[%clk 0:03:03.6]}
4. Nxd4 {[%clk 0:03:04.4]} 4... Nf6 {[%clk 0:03:04.2]} 5. Nc3 {[%clk 0:03:05.5]}
5... a6 {[%clk 0:03:05.7]} 6. Be2 {[%clk 0:03:06.5]} 6... e6 {[%clk 0:03:06.6]}
7. Be3 {[%clk 0:03:06.4]} 7... Be7 {[%clk 0:03:06.4]} 8. g4 {[%clk 0:03:06.6]}
8... d5 {[%clk 0:03:05.9]} 9. exd5 {[%clk 0:03:00.4]} 9... Nxd5 {[%clk
0:03:06.6]} 10. Nxd5 {[%clk 0:02:59.9]} 10... Qxd5 {[%clk 0:03:08.5]} 11. Bf3
{[%clk 0:02:56.3]} 11... Qa5+ {[%clk 0:03:09.2]} 12. Qd2 {[%clk 0:02:47.8]}
12... Qxd2+ {[%clk 0:03:08.5]} 13. Bxd2 {[%clk 0:02:49.7]} 13... Nd7 {[%clk
0:03:08.9]} 14. O-O-O {[%clk 0:02:46]} 14... Ne5 {[%clk 0:03:05.6]} 15. Be2
{[%clk 0:02:45.4]} 15... g5 {[%clk 0:03:04.2]} 16. Bc3 {[%clk 0:02:40.6]} 16...
Ng6 {[%clk 0:03:01.3]} 17. Bf3 {[%clk 0:02:04.7]} 17... Rb8 {[%clk 0:03:00.6]}
18. h3 {[%clk 0:02:04.3]} 18... Bd7 {[%clk 0:03:01.1]} 19. Nb3 {[%clk
0:01:39.8]} 19... f6 {[%clk 0:02:36.6]} 20. Na5 {[%clk 0:01:38.6]} 20... Bc8
{[%clk 0:02:26]} 21. Nc4 {[%clk 0:01:33.3]} 21... b5 {[%clk 0:02:08]} 22. Nd6+
{[%clk 0:01:31.7]} 22... Bxd6 {[%clk 0:02:08.6]} 23. Rxd6 {[%clk 0:01:33.3]}
23... Kf7 {[%clk 0:01:49.8]} 24. Be4 {[%clk 0:01:12]} 24... Re8 {[%clk
0:01:45.8]} 25. a3 {[%clk 0:01:07.3]} 25... Bb7 {[%clk 0:01:42.6]} 26. Bxb7
{[%clk 0:00:55.5]} 26... Rxb7 {[%clk 0:01:43.5]} 27. Rxa6 {[%clk 0:00:57]} 27...
Rd8 {[%clk 0:01:39.6]} 28. Rc6 {[%clk 0:00:50.2]} 28... e5 {[%clk 0:01:31.8]}
29. b3 {[%clk 0:00:46.4]} 29... Nh4 {[%clk 0:01:16.2]} 30. Kb2 {[%clk
0:00:38.7]} 30... Nf3 {[%clk 0:01:17]} 31. Rc5 {[%clk 0:00:30.9]} 31... Kg6
{[%clk 0:01:17.1]} 32. Rc6 {[%clk 0:00:30.1]} 32... h5 {[%clk 0:01:04]} 33.
gxh5+ {[%clk 0:00:26.3]} 33... Kf5 {[%clk 0:01:04.9]} 34. Ba5 {[%clk 0:00:16.3]}
34... Rh8 {[%clk 0:01:05]} 35. Rd1 {[%clk 0:00:17.4]} 35... Rxh5 {[%clk
0:00:44.5]} 36. Rdd6 {[%clk 0:00:16.9]} 36... Rf7 {[%clk 0:00:43.8]} 37. Bd8
{[%clk 0:00:16.9]} 37... Rh6 {[%clk 0:00:42.4]} 38. a4 {[%clk 0:00:16.9]} 38...
bxa4 {[%clk 0:00:41.7]} 39. bxa4 {[%clk 0:00:18.8]} 39... Nd4 {[%clk 0:00:42]}
40. Rb6 {[%clk 0:00:13.3]} 40... Ke4 {[%clk 0:00:32.4]} 41. Rxf6 {[%clk
0:00:12.5]} 41... Rfxf6 {[%clk 0:00:31.4]} 42. Bxf6 {[%clk 0:00:08.3]} 42... Kf5
{[%clk 0:00:28.3]} 43. Bd8 {[%clk 0:00:07.9]} 43... Rxh3 {[%clk 0:00:29.2]} 44.
a5 {[%clk 0:00:06.4]} 44... Rh8 {[%clk 0:00:24.1]} 45. Rb8 {[%clk 0:00:05.1]}
45... Nc6 {[%clk 0:00:23.1]} 46. Rc8 {[%clk 0:00:04.2]} 46... Nxa5 {[%clk
0:00:21.1]} 0-1